Workbook

Sheet Индия
B6: Индия
B8: Наименование | I8: Кол-во штук | J8: Расчетный вес | K8: Загруженность
B9: 20*STD | C9: 20*STD | D9: 20*STD | E9: 20*STD | F9: 20*STD | G9: 20*STD | H9: 20*STD | J9: =I9*3000 -> 0 | K9: =J23/3000*100% -> 1.260278
B10: 40*std | C10: 40*std | D10: 40*std | E10: 40*std | F10: 40*std | G10: 40*std | H10: 40*std | I10: 0 | J10: =I10*Лист1!C4 -> 0 | K10: =J23/7000*100% -> 0.5401191429
B11: Диск МКС внутренний 316L б /MKS Inner disk 316L 10007926 | C11: Диск МКС внутренний 316L б /MKS Inner disk 316L 10007926 | D11: Диск МКС внутренний 316L б /MKS Inner disk 316L 10007926 | E11: Диск МКС внутренний 316L б /MKS Inner disk 316L 10007926 | F11: Диск МКС внутренний 316L б /MKS Inner disk 316L 10007926 | G11: Диск МКС внутренний 316L б /MKS Inner disk 316L 10007926 | H11: Диск МКС внутренний 316L б /MKS Inner disk 316L 10007926 | I11: 5600 | J11: =I11*0.675 -> 3780
B12: Диск МКС нижний 316L а/MKS Bottom disk 316L 12 отверстий | C12: Диск МКС нижний 316L а/MKS Bottom disk 316L 12 отверстий | D12: Диск МКС нижний 316L а/MKS Bottom disk 316L 12 отверстий | E12: Диск МКС нижний 316L а/MKS Bottom disk 316L 12 отверстий | F12: Диск МКС нижний 316L а/MKS Bottom disk 316L 12 отверстий | G12: Диск МКС нижний 316L а/MKS Bottom disk 316L 12 отверстий | H12: Диск МКС нижний 316L а/MKS Bottom disk 316L 12 отверстий | J12: =I12*0.675 -> 0
B13: Диск МКС средний 316L/MKS Intermediate disk 316L 6 отверстий 10007928 | C13: Диск МКС средний 316L/MKS Intermediate disk 316L 6 отверстий 10007928 | D13: Диск МКС средний 316L/MKS Intermediate disk 316L 6 отверстий 10007928 | E13: Диск МКС средний 316L/MKS Intermediate disk 316L 6 отверстий 10007928 | F13: Диск МКС средний 316L/MKS Intermediate disk 316L 6 отверстий 10007928 | G13: Диск МКС средний 316L/MKS Intermediate disk 316L 6 отверстий 10007928 | H13: Диск МКС средний 316L/MKS Intermediate disk 316L 6 отверстий 10007928 | J13: =I13*0.675 -> 0
B14: Зажим односторонний 16-25; | C14: Зажим односторонний 16-25; | D14: Зажим односторонний 16-25; | E14: Зажим односторонний 16-25; | F14: Зажим односторонний 16-25; | G14: Зажим односторонний 16-25; | H14: Зажим односторонний 16-25; | J14: =I14*0.9 -> 0
B15: Зажим односторонний 6-15; | C15: Зажим односторонний 6-15; | D15: Зажим односторонний 6-15; | E15: Зажим односторонний 6-15; | F15: Зажим односторонний 6-15; | G15: Зажим односторонний 6-15; | H15: Зажим односторонний 6-15; | J15: =I15*0.9 -> 0
B16: Клапан Snapin тип 1 L10,5; | C16: Клапан Snapin тип 1 L10,5; | D16: Клапан Snapin тип 1 L10,5; | E16: Клапан Snapin тип 1 L10,5; | F16: Клапан Snapin тип 1 L10,5; | G16: Клапан Snapin тип 1 L10,5; | H16: Клапан Snapin тип 1 L10,5; | J16: =I16*0.55 -> 0
B17: Клапан подвиж. BDH 14LL12,7 s2; | C17: Клапан подвиж. BDH 14LL12,7 s2; | D17: Клапан подвиж. BDH 14LL12,7 s2; | E17: Клапан подвиж. BDH 14LL12,7 s2; | F17: Клапан подвиж. BDH 14LL12,7 s2; | G17: Клапан подвиж. BDH 14LL12,7 s2; | H17: Клапан подвиж. BDH 14LL12,7 s2; | J17: =I17*0.55 -> 0
B18: Клапан подвиж. BDH 16LL12,7 s1.5; | C18: Клапан подвиж. BDH 16LL12,7 s1.5; | D18: Клапан подвиж. BDH 16LL12,7 s1.5; | E18: Клапан подвиж. BDH 16LL12,7 s1.5; | F18: Клапан подвиж. BDH 16LL12,7 s1.5; | G18: Клапан подвиж. BDH 16LL12,7 s1.5; | H18: Клапан подвиж. BDH 16LL12,7 s1.5; | J18: =I18*0.55 -> 0
B19: Пластина крепеж. выпукл. 47х27х2; | C19: Пластина крепеж. выпукл. 47х27х2; | D19: Пластина крепеж. выпукл. 47х27х2; | E19: Пластина крепеж. выпукл. 47х27х2; | F19: Пластина крепеж. выпукл. 47х27х2; | G19: Пластина крепеж. выпукл. 47х27х2; | H19: Пластина крепеж. выпукл. 47х27х2; | J19: =I19*0.03 -> 0
B20: Шайба выпуклая 11/32х2; | C20: Шайба выпуклая 11/32х2; | D20: Шайба выпуклая 11/32х2; | E20: Шайба выпуклая 11/32х2; | F20: Шайба выпуклая 11/32х2; | G20: Шайба выпуклая 11/32х2; | H20: Шайба выпуклая 11/32х2; | J20: =I20*0.04 -> 0
B21: Шпилька приварная М10х20; | C21: Шпилька приварная М10х20; | D21: Шпилька приварная М10х20; | E21: Шпилька приварная М10х20; | F21: Шпилька приварная М10х20; | G21: Шпилька приварная М10х20; | H21: Шпилька приварная М10х20; | J21: =I21*0.01 -> 0
B22: Шпилька резьб М10х50 уплощен 1; | C22: Шпилька резьб М10х50 уплощен 1; | D22: Шпилька резьб М10х50 уплощен 1; | E22: Шпилька резьб М10х50 уплощен 1; | F22: Шпилька резьб М10х50 уплощен 1; | G22: Шпилька резьб М10х50 уплощен 1; | H22: Шпилька резьб М10х50 уплощен 1; | I22: 556 | J22: =I22*0.0015 -> 0.834
I23: Total | J23: =SUM(J9:J22) -> 3780.834
B25: Условия поставки
B26: EXW Pune,India
B28: Расчет ниже
B30: Категория | D30: EXPRESS
B31: Фрахт
B32: Customs servise
B33: Termilnal
B34: Local to Serpukhov
B35: DEPARTURE AIRPORT COSTS
B36: Delivery time
B37: Total, USD

Sheet Китай
B6: Китай
B8: Наименование | I8: Кол-во штук | J8: Расчетный вес
B9: Клапан UFM
B10: RING
B11: Прокат
B12: RING
B13: Воротники
B14: 40*std rail
B16: Условия поставки
B17: FOB
B19: Расчет ниже
B21: Категория | D21: AIR | F21: Sea LCL | H21: Sea 20*std | I21: Sea 40*std | J21: Rail LCL | L21: Rail 20*std | M21: Rail 40*std
B22: Фрахт
B23: Customs servise
B24: Termilnal
B25: Local to Serpukhov
B26: Additional cost
B27: Delivery time
B28: Total, USD

Sheet Лист1
B2: Наименование | H2: FCA Mumbai,India
B3: 20*STD | C3: 3000 | D3: =LOOKUP(Индия!B11:H22,) ->  | H3: FOB Nhava Sheva,India
B4: 40*std | C4: 7000 | D4: =LOOKUP(Индия!B10:H23,B4:B17,C4:C17) ->  | H4: EXW Pune,India
B5: Диск МКС внутренний 316L б /MKS Inner disk 316L 10007926 | C5: 0.685 | D5: =LOOKUP(Индия!B11:H24,B5:B18,C5:C18) -> 
B6: Диск МКС нижний 316L а/MKS Bottom disk 316L 12 отверстий | C6: 0.675 | H6: FOB
B7: Диск МКС средний 316L/MKS Intermediate disk 316L 6 отверстий 10007928 | C7: 0.24 | D7: =LOOKUP(Индия!B13:H26,B7:B20,C7:C20) ->  | H7: FCA
B8: Зажим односторонний 16-25; | C8: 0.09 | D8: =LOOKUP(Индия!B22:H27,B8:B21,C8:C21) ->  | H8: EXW
B9: Зажим односторонний 6-15; | C9: 0.06 | D9: =LOOKUP(Индия!B23:H28,B9:B22,C9:C22) -> 
B10: Клапан Snapin тип 1 L10,5; | C10: 0.055 | D10: =LOOKUP(Индия!B24:H29,B10:B23,C10:C23) -> 
B11: Клапан подвиж. BDH 14LL12,7 s2; | C11: 0.04 | D11: =LOOKUP(Индия!B25:H29,B11:B24,C11:C24) -> 
B12: Клапан подвиж. BDH 16LL12,7 s1.5; | C12: 0.04 | D12: =LOOKUP(Индия!B26:H29,B12:B25,C12:C25) -> 
B13: Пластина крепеж. выпукл. 47х27х2; | C13: 0.03 | D13: =LOOKUP(Индия!B27:H29,B13:B26,C13:C26) -> 
B14: Шайба выпуклая 11/32х2; | C14: 0.02 | D14: =LOOKUP(Индия!B28:H29,B14:B27,C14:C27) -> 
B15: Шпилька приварная М10х20; | C15: 0.01 | D15: =LOOKUP(Индия!B29:H29,B15:B28,C15:C28) -> 
B16: Шпилька резьб М10х50 уплощен 1; | C16: 0.0015 | D16: =LOOKUP(Доп!B1:H6,B16:B29,C16:C29) -> 
B18: 20*std sea | C18: 3000 | D18: =LOOKUP(Китай!B9:H14,Лист1!B18:B25,Лист1!C18:C25) -> 
B19: 40*std rail | C19: 7000
B20: 40*std sea | C20: 7000
B21: RING | C21: 1
B22: Воротники | C22: 2
B23: Клапан UFM | C23: 3
B24: Прокат | C24: 4
B25: Сетка | C25: 5

Sheet Доп (hidden)
B1: Категория | D1: AIR | F1: Sea LCL | H1: Sea 20*std | I1: Sea 40*std | J1: EXPRESS
B2: Фрахт | D2: ='AIR from China'!$C$19 -> 14367.1692 | F2: =Индия!$J$23*350/1000 -> 1323.2919 | H2: 1750 | I2: 2000
B3: Customs servise | D3: 250 | F3: 350 | H3: 350 | I3: 350
B4: Termilnal | D4: ='AIR from China'!C27 -> 2067.643594
B5: Local to Serpukhov | D5: 250 | F5: 456 | H5: 620 | I5: 916
B6: DEPARTURE AIRPORT COSTS | D6: 120
B7: Delivery time | D7: 1 week | F7: 9 week | H7: 8 week | I7: 8 week
B8: Total, USD | D8: =SUM(D2:E7) -> 17054.81279 | F8: =SUM(F2:G7) -> 2129.2919 | H8: =SUM(H2:H7) -> 2720 | I8: =SUM(I2:I7) -> 3266

Sheet AIR from China (hidden)
A1: Please choose the correct coditions for transportation and fill in the green cell:
A3: Crate lenght, cm | B3: Crate width, cm | C3: Crate height, cm | D3: Gross weight, kg | E3: Volume weight, kg | F3: Estimated weight, kg
D4: =Индия!J23 -> 3780.834 | E4: =A4*B4*C4/6000 -> 0 | F4: =IF(E4>D4,E4,D4) -> 3780.834
E5: 0 | F5: 0
E6: 0 | F6: 0
E7: 0 | F7: 0
E8: 0 | F8: 0
E9: 0 | F9: 0
E10: 0 | F10: 0
A11: TOTAL ESTIMATED WEIGHT, kg : | F11: =F4+F5+F6+F7+F8+F9+F10 -> 3780.834
A13: FROM | I13: FCA Mumbai, India
I14: 1
A15: DELIVERY PLACE | I15: Serpukhov
I16: Other | O16: +45kgs | P16: +100kgs | Q16: +300kgs | R16: +500kgs | S16: +1000kgs | T16: 2000
A17: AIRPORT ARRIVAL | I17: 1 | L17: 1
I18: DME | J18: 11500 | O18: 6.4 | P18: 5.9 | Q18: 5.4 | R18: 4.7 | S18: 3.8 | T18: 3.8
A19: AIR FREIGHT COST | C19: =O30 -> 14367.1692 | J19: 14000
I20: 7000 | J20: 7000
A21: DEPARTURE AIRPORT COSTS | C21: 120 | I21: 1
A23: LOCAL TRANSPORTATION | C23: =IF(I17=1,I20,0)/B33 -> 109.375 | E23: =IF(I17=2,"Сontact log.dep","") -> 
A25: CUSTOMS SERVICE COST | C25: =IF(I21=1,J18,J19)/B33 -> 179.6875
A27: ARRIVAL AIRPORT COSTS | C27: =F11*35/B33 -> 2067.643594
A29: DELIVERY TIME, days | C29: 6
O30: =(IF(AND('AIR from China'!F11<45,'AIR from China'!F11<=45),'AIR from China'!O18,IF(AND('AIR from China'!F11>45,'AIR from China'!F11<=100),'AIR from China'!O18,IF(AND('AIR from China'!F11>100,'AIR from China'!F11<=300),'AIR from China'!P18,IF(AND('AIR from China'!F11>300,'AIR from China'!F11<=500),'AIR from China'!Q18,IF(AND('AIR from China'!F11>500,'AIR from China'!F11<=1000),'AIR from China'!R18,IF(AND('AIR from China'!F11>1000,'AIR from China'!F11<=2000),'AIR from China'!S18,IF(AND('AIR from China'!F11>2000,'AIR from China'!F11<=3000),'AIR from China'!S18,IF(AND('AIR from China'!F11>3000,'AIR from China'!F11<=4000),'AIR from China'!S18,IF(AND('AIR from China'!F11>4000,'AIR from China'!F11<=30000),'AIR from China'!S18,""))))))))))*F11 -> 14367.1692
A31: TOTAL COSTS | C31: =O30+C21+C23+C25+C27 -> 16843.87529
A33: Currency rate $ / RUR | B33: 64
